fUSD/lending_fUSD_20240929
["ID","MTS","AMOUNT","RATE_DAILY","PERIOD"]
[339430084,1727615254331,-1000.0,0.00029627,30]
[339430085,1727615254356,-1000.0,0.00029627,30]
[339430086,1727615254379,-406.84770825,0.00029627,30]
[339430087,1727615254403,-194.0,0.00029627,30]
[339430088,1727615254426,-194.0,0.00029627,30]
[339430089,1727615254449,-194.0,0.00029627,30]
[339430090,1727615254472,-200.0,0.00029627,30]
[339430091,1727615254496,-188.0,0.00029627,30]
[339430092,1727615254520,-200.0,0.00029627,30]
[339430093,1727615254545,-188.0,0.00029627,30]
[339430094,1727615254569,-647.0,0.00029627,30]
[339430095,1727615254593,-647.0,0.00029627,30]
[339430096,1727615254616,-1000.0,0.00029627,30]
[339430097,1727615254639,-1000.0,0.00029627,30]
[339430098,1727615254662,-1000.0,0.00029627,30]
[339430099,1727615254685,-1000.0,0.00029627,30]
[339430100,1727615254708,-1000.0,0.00029627,30]
[339430101,1727615254732,-807.24653684,0.00029627,30]
[339430102,1727615254755,-1000.0,0.00029627,30]
[339430103,1727615254778,-493.53306467,0.00029627,60]
[339430104,1727615254801,-1002.29056695,0.00029627,120]
[339430105,1727615254825,-1000.0,0.00029627,30]
[339430106,1727615254848,-161.7562786,0.00029627,30]
[339430107,1727615254870,-160.0,0.00029627,30]
[339430108,1727615254893,-616.16461638,0.00029627,30]
[339430109,1727615254916,-490.76840259,0.00029627,30]
[339430110,1727615254938,-366.78826576,0.00029627,30]
[339430111,1727615254960,-220.92154226,0.00029627,30]
[339430112,1727615254983,-532.57768565,0.00029627,60]
[339430113,1727615255005,-2170.56086591,0.00029627,120]
[339430114,1727615255028,-484.40322998,0.00029627,30]
[339430115,1727615255051,-841.38507292,0.00029627,30]
[339430116,1727615255074,-1000.0,0.00029627,30]
[339430117,1727615255097,-1083.51121183,0.00029627,120]
[339430118,1727615255120,-1932.34690312,0.00029627,30]
[339430119,1727615255142,-710.0061343,0.00029627,30]
[339430120,1727615255165,-1954.27990274,0.00029627,120]
[339430121,1727615255187,-1530.45952511,0.00029627,120]
[339430122,1727615255209,-254.69660744,0.00029627,30]
[339430123,1727615255231,-371.60651944,0.00029627,120]
[339430124,1727615255253,-1656.62522642,0.00029627,30]
[339430125,1727615255275,-824.14595095,0.00029627,30]
[339430126,1727615255297,-1200.0,0.00029627,120]
[339430127,1727615255319,-832.02852573,0.00029627,30]
[339430128,1727615255343,-256.17146388,0.00029627,120]
[339430129,1727615255365,-270.79222324,0.00029627,120]
[339430130,1727615255388,-896.21335328,0.00029627,30]
[339430131,1727615255411,-483.56757787,0.00029627,120]
[339430132,1727615255433,-872.92897726,0.00029627,31]
[339430133,1727615255456,-200.59089722,0.00029627,30]
[339430134,1727615255478,-925.86740918,0.00029627,30]
[339430135,1727615255500,-1003.20946942,0.00029627,120]
[339430136,1727615255523,-199.16622281,0.00029627,120]
[339430137,1727615255544,-1809.6749297,0.00029627,120]
[339430138,1727615255566,-223.42879726,0.00029627,30]
[339430139,1727615255588,-3236.4985163,0.00029627,31]
[339430140,1727615255612,-953.24092582,0.00029627,120]
[339430141,1727615255633,-832.5420133,0.00029627,120]
[339430142,1727615255655,-338.4016374,0.00029627,30]
[339430143,1727615255677,-1410.75844574,0.00029627,120]
[339430144,1727615255844,-209.78967364,0.00029627,120]
[339430145,1727615255867,-942.07815697,0.00029627,120]
[339430146,1727615255889,-1173.70718905,0.00029627,120]
[339430147,1727615255910,-1801.07078441,0.00029627,120]
[339430148,1727615255932,-320.85379693,0.00029627,120]
[339430149,1727615255954,-1750.51189743,0.00029627,120]
[339430150,1727615255977,-261.07676496,0.00029627,31]
[339430151,1727615255999,-750.0,0.00029627,30]
[339430152,1727615256020,-286.9609856,0.00029627,120]
[339430153,1727615256042,-299.59633051,0.00029627,120]
[339430154,1727615256067,-1034.49178656,0.00029627,120]
[339430155,1727615256089,-1658.24339937,0.00029627,120]
[339430156,1727615256113,-881.2876351,0.00029627,120]
[339430157,1727615256137,-911.04222277,0.00029627,120]
[339430158,1727615256161,-200.0,0.00029627,120]
[339430159,1727615256183,-851.63987888,0.00029627,30]
[339430160,1727615256206,-568.69732357,0.00029627,120]
[339430161,1727615256231,-956.48463437,0.00029627,120]
[339430162,1727615256255,-691.2150408,0.00029627,120]
[339430163,1727615256279,-414.04113229,0.00029627,120]
[339430164,1727615256302,-196.13839775,0.00029627,30]
[339430165,1727615256327,-1228.25820103,0.00029627,120]
[339430166,1727615256351,-1944.2340139,0.00029627,120]
[339430167,1727615256374,-786.7490219,0.00029627,120]
[339430168,1727615256396,-1433.39025855,0.00029627,120]
[339430169,1727615256419,-256.90276045,0.00029627,30]
[339430170,1727615256444,-658.67775835,0.00029627,120]
[339430171,1727615256469,-1395.88517831,0.00029627,120]
[339430172,1727615256492,-1702.71450106,0.00029627,30]
[339430173,1727615256515,-289.89812462,0.00029627,31]
[339430174,1727615256539,-608.54719853,0.00029627,120]
[339430175,1727615256561,-279.73472606,0.00029627,120]
[339430176,1727615256585,-1409.56589722,0.00029627,30]
[339430177,1727615256608,-362.14439397,0.00029627,120]
[339430178,1727615256630,-1102.3009267,0.00029627,30]
[339430179,1727615256652,-1032.60646865,0.00029627,120]
[339430180,1727615256675,-1074.10703656,0.00029627,30]
[339430181,1727615256696,-646.68397226,0.00029627,120]
[339430182,1727615256718,-756.0,0.00029627,120]
[339430183,1727615256740,-290.80240016,0.00029627,30]
[339430184,1727615256762,-2115.54061641,0.00029627,30]
[339430185,1727615256784,-1071.09526778,0.00029627,120]
[339430186,1727615256806,-1979.06487542,0.00029627,120]
[339430187,1727615256828,-266.0,0.00029627,30]
[339430188,1727615256852,-935.56108398,0.00029627,120]
[339430189,1727615256874,-171.32729722,0.00029627,120]
[339430190,1727615256896,-1321.31838489,0.00029627,30]
[339430191,1727615256917,-201.40848663,0.00029627,120]
[339430192,1727615256939,-262.0,0.00029627,30]
[339430193,1727615256962,-2961.0,0.00029627,120]
[339430194,1727615256984,-200.0,0.00029627,30]
[339430195,1727615257006,-200.0,0.00029627,30]
[339430196,1727615257028,-200.0,0.00029627,30]
[339430197,1727615257050,-200.0,0.00029627,30]
[339430198,1727615257074,-200.0,0.00029627,30]
[339430199,1727615257097,-200.0,0.00029627,30]
[339430200,1727615257119,-200.0,0.00029627,30]
[339430201,1727615257141,-200.0,0.00029627,30]
[339430202,1727615257164,-200.0,0.00029627,30]
[339430203,1727615257186,-200.0,0.00029627,30]
[339430204,1727615257207,-200.0,0.00029627,30]
[339430205,1727615257229,-200.0,0.00029627,30]
[339430206,1727615257252,-200.0,0.00029627,30]
[339430207,1727615257274,-200.0,0.00029627,30]
[339430208,1727615257296,-200.0,0.00029627,30]
[339430209,1727615257318,-200.0,0.00029627,30]
[339430210,1727615257341,-200.0,0.00029627,30]
[339430211,1727615257363,-200.0,0.00029627,30]
[339430212,1727615257385,-200.0,0.00029627,30]
[339430213,1727615257408,-200.0,0.00029627,30]
[339430214,1727615257430,-200.0,0.00029627,30]
[339430215,1727615257452,-200.0,0.00029627,30]
[339430216,1727615257474,-200.0,0.00029627,30]
[339430217,1727615257497,-200.0,0.00029627,30]
[339430218,1727615257519,-200.0,0.00029627,30]
[339430219,1727615257541,-200.0,0.00029627,30]
[339430220,1727615257563,-200.0,0.00029627,30]
[339430221,1727615257585,-200.0,0.00029627,30]
[339430222,1727615257608,-200.0,0.00029627,30]
[339430223,1727615257629,-200.0,0.00029627,30]
[339430224,1727615257651,-200.0,0.00029627,30]
[339430225,1727615257674,-200.0,0.00029627,30]
[339430226,1727615257832,-200.0,0.00029627,30]
[339430227,1727615257855,-200.0,0.00029627,30]
[339430228,1727615257878,-200.0,0.00029627,30]
[339430229,1727615257900,-200.0,0.00029627,30]
[339430230,1727615257922,-200.0,0.00029627,30]
[339430231,1727615257944,-200.0,0.00029627,30]
[339430232,1727615257966,-200.0,0.00029627,30]
[339430233,1727615257988,-200.0,0.00029627,30]
[339430234,1727615258011,-200.0,0.00029627,30]
[339430235,1727615258033,-200.0,0.00029627,30]
[339430236,1727615258056,-200.0,0.00029627,30]
[339430237,1727615258080,-200.0,0.00029627,30]
[339430238,1727615258104,-200.0,0.00029627,30]
[339430239,1727615258128,-200.0,0.00029627,30]
[339430240,1727615258156,-200.0,0.00029627,30]
[339430241,1727615258179,-200.0,0.00029627,30]
[339430242,1727615258202,-200.0,0.00029627,30]
[339430243,1727615258224,-10510.81751175,0.00029627,120]
[339430244,1727615258246,-200.24611009,0.00029627,30]
[339430245,1727615258270,-26969.38207073,0.00029627,120]
[339430246,1727615258293,-917.09,0.00029627,30]
[339430247,1727615258315,-5000.0,0.00029627,34]
[339430248,1727615258338,-1580.0,0.00029627,90]
[339430249,1727615258362,-6992.76656724,0.00029627,30]
[339430250,1727615258386,-277.43911859,0.00029627,31]
[339430251,1727615258408,-1710.60075496,0.00029627,120]
[339430252,1727615258432,-5309.59254764,0.00029627,120]
[339430253,1727615258454,-153.30617957,0.00029627,120]
[339430254,1727615258477,-1261.48106425,0.00029627,30]
[339430255,1727615258500,-251.43274315,0.00029627,30]
[339430256,1727615258524,-9066.0,0.00029627,99]
[339430257,1727615258546,-223.9673611,0.00029627,120]
[339430258,1727615258568,-1299.50996338,0.00029627,120]
[339430259,1727615258596,-50000.0,0.00029627,30]
[339430260,1727615258621,-50000.0,0.00029627,31]
[339430261,1727615258648,-50000.0,0.00029627,32]
[339430262,1727615258673,-50000.0,0.00029627,33]
[339430263,1727615258698,-50000.0,0.00029627,34]
[339430264,1727615258723,-50000.0,0.00029627,35]
[339430265,1727615258745,-78011.04,0.00029627,60]
[339430266,1727615258767,-15000.0,0.00029627,120]
[339430267,1727615258791,-3839.81144476,0.00029627,120]
[339430268,1727615258813,-24773.0,0.00029627,30]
[339430269,1727615258836,-8100.0,0.00029627,120]
[339430270,1727615258861,-7506.17546378,0.00029627,60]
[339430271,1727615258884,-300000.0,0.00029627,30]
[339430272,1727615258906,-102382.25824902,0.00029627,30]
[339430273,1727615258929,-7095.81190121,0.00029627,30]
[339430274,1727615258952,-5914.05669568,0.00029627,30]
[339430275,1727615258975,-798276.40101959,0.00029627,30]
[339430276,1727615258997,-1819910.05171763,0.00029627,30]
[339430277,1727615259020,-11645.58831774,0.00029627,30]
[339430278,1727615259045,-6841.13197213,0.00029627,30]
[339430279,1727615259071,-317988.8081846,0.00029627,30]
[339430280,1727615259094,-2316.25513438,0.00029627,60]
[339430281,1727615259117,-3056.05475658,0.00029627,120]
[339430282,1727615259140,-3155.7870126,0.00029627,120]
[339430283,1727615259163,-3186.70030188,0.00029627,120]
[339430284,1727615259185,-2960.16510099,0.00029627,30]
[339430285,1727615259207,-10139.10313062,0.00029627,120]
[339430286,1727615259230,-3549.4119659,0.00029627,120]
[339430287,1727615259253,-2862.86566828,0.00029627,30]
[339430288,1727615259276,-2589.61395277,0.00029627,30]
[339430289,1727615259299,-2237.8772998,0.00029627,30]
[339430290,1727615259323,-21329.53665515,0.00029627,30]
[339430291,1727615259347,-3036.88568203,0.00029627,120]
[339430292,1727615259370,-3000.0,0.00029627,120]
[339430293,1727615259393,-3312.65749278,0.00029627,90]
[339430294,1727615259416,-3055.26077872,0.00029627,30]
[339430295,1727615259440,-2664.05069294,0.00029627,30]
[339430296,1727615259463,-2282.11607202,0.00029627,30]
[339430297,1727615259487,-2708.31013838,0.00029627,120]
[339430298,1727615259509,-2500.0,0.00029627,30]
[339430299,1727615259532,-500.20448477,0.00029627,120]
[339430300,1727615259555,-3015.03772178,0.00029627,120]
[339430301,1727615259577,-2999.99999901,0.00029627,30]
[339430302,1727615259602,-5000.0,0.00029627,30]
[339430303,1727615259625,-5000.0,0.00029627,31]
[339430304,1727615259781,-5000.0,0.00029627,32]
[339430305,1727615259804,-5000.0,0.00029627,33]
[339430306,1727615259826,-150000.0,0.00029627,30]
[339430307,1727615259851,-20399.15867461,0.00029627,120]
[339430308,1727615259872,-3647.60396779,0.00029627,120]
[339430309,1727615259894,-10066.75801661,0.00029627,120]
[339430310,1727615259917,-199.2,0.00029627,30]
[339430311,1727615259938,-4077.0,0.00029627,30]
[339430312,1727615259961,-131505.36705973,0.00029627,30]
[339430313,1727615259983,-679.0,0.00029627,120]
[339430314,1727615260006,-3131.25171012,0.00029627,120]
[339430315,1727615260028,-10066.63675503,0.00029627,30]
[339430316,1727615260051,-5070.50785275,0.00029627,120]
[339430317,1727615260076,-271.53771019,0.00029627,30]
[339430318,1727615260100,-918.22915635,0.00029627,120]
[339430319,1727615260124,-569898.63901176,0.00029627,30]
[339430320,1727615264435,-981867.54138824,0.00029627,30]
[339430321,1727615264459,-199.2,0.00029627,30]
[339430322,1727615264484,-10000.0,0.00029627,120]
[339430323,1727615264507,-473.16092893,0.00029627,30]
[339430324,1727615264531,-1497.93514235,0.00029627,30]
[339430325,1727615264557,-101641.72173181,0.00029627,60]
[339430326,1727615264580,-5254.98308442,0.00029627,35]
[339430327,1727615264609,-3254.0,0.00029627,120]
[339430328,1727615264632,-369.43510493,0.00029627,30]
[339430329,1727615264656,-7126.404825,0.00029627,120]
[339430330,1727615264679,-3041.542605,0.00029627,120]
[339430331,1727615264703,-223215.41755082,0.00029627,30]
[339430332,1727615264726,-15911.47197347,0.00029627,30]
[339430333,1727615264749,-199.2,0.00029627,30]
[339430334,1727615264772,-1388.0,0.00029627,90]
[339430335,1727615264796,-724.47856968,0.00029627,30]
[339430336,1727615264818,-20103.32903296,0.00029627,30]
[339430337,1727615264841,-4670.90669693,0.00029627,60]
[339430338,1727615264867,-1000.0,0.00029627,30]
[339430339,1727615264890,-1000.0,0.00029627,30]
[339430340,1727615264912,-1000.0,0.00029627,30]
[339430341,1727615264935,-1000.0,0.00029627,30]
[339430342,1727615264957,-1000.0,0.00029627,30]
[339430343,1727615264979,-1000.0,0.00029627,30]
[339430344,1727615265001,-1000.0,0.00029627,30]
[339430345,1727615265024,-1000.0,0.00029627,30]
[339430346,1727615265046,-1000.0,0.00029627,30]
[339430347,1727615265072,-1000.0,0.00029627,30]
[339430348,1727615265100,-1000.0,0.00029627,30]
[339430349,1727615265124,-1000.0,0.00029627,30]
[339430350,1727615265146,-1000.0,0.00029627,30]
[339430351,1727615265313,-1000.0,0.00029627,30]
[339430352,1727615265337,-1000.0,0.00029627,30]
[339430353,1727615265361,-1000.0,0.00029627,30]
[339430354,1727615265384,-1000.0,0.00029627,30]
[339430355,1727615265406,-1000.0,0.00029627,30]
[339430356,1727615265430,-1000.0,0.00029627,30]
[339430357,1727615265454,-1000.0,0.00029627,30]
[339430358,1727615265477,-1000.0,0.00029627,30]
[339430359,1727615265500,-1000.0,0.00029627,30]
[339430360,1727615265526,-1000.0,0.00029627,30]
[339430361,1727615265551,-1000.0,0.00029627,30]
[339430362,1727615265574,-1000.0,0.00029627,30]
[339430363,1727615265597,-1000.0,0.00029627,30]
[339430364,1727615265619,-1000.0,0.00029627,30]
[339430365,1727615265642,-1000.0,0.00029627,30]
[339430366,1727615265664,-1000.0,0.00029627,30]
[339430367,1727615265686,-1000.0,0.00029627,30]
[339430368,1727615265708,-156.160171,0.00029627,40]
[339430369,1727615265730,-156.160171,0.00029627,40]
[339430370,1727615265752,-250.0,0.00029627,30]
[339430371,1727615265774,-250.0,0.00029627,30]
[339430372,1727615265796,-250.0,0.00029627,30]
[339430373,1727615265818,-250.0,0.00029627,30]
[339430374,1727615265840,-250.0,0.00029627,30]
[339430375,1727615265863,-250.0,0.00029627,30]
[339430376,1727615265885,-250.0,0.00029627,30]
[339430377,1727615265908,-250.0,0.00029627,30]
[339430378,1727615265929,-250.0,0.00029627,30]
[339430379,1727615265951,-250.0,0.00029627,30]
[339430380,1727615265973,-250.0,0.00029627,30]
[339430381,1727615265995,-250.0,0.00029627,30]
[339430382,1727615266017,-238.524523,0.00029627,30]
[339430383,1727615266040,-150.0,0.00029627,30]
[339430384,1727615266809,194.0,0.00029627,30]
[339430385,1727615267262,194.0,0.00029627,30]
[339430386,1727615267916,194.0,0.00029627,30]
[339430387,1727615268219,200.0,0.00029627,30]
[339430388,1727615268962,188.0,0.00029627,30]
[339430389,1727615269401,200.0,0.00029627,30]
[339430390,1727615269834,188.0,0.00029627,30]
[339430391,1727615270562,194.0,0.00029627,30]
[339430392,1727615283774,-649.48458715,0.000157,30]
[339430393,1727615283813,-500.0,0.000157,30]
[339430394,1727615283840,-500.0,0.000157,30]
[339430395,1727615284012,-500.0,0.000157,30]
[339430396,1727615284037,-500.0,0.000157,30]
[339430397,1727615284063,-500.0,0.000157,30]
[339430398,1727615284091,-500.0,0.000157,30]
[339430399,1727615284118,-500.0,0.000157,30]
[339430400,1727615284144,-500.0,0.000157,30]
[339430401,1727615284171,-500.0,0.000157,30]
[339430402,1727615284196,-500.0,0.000157,30]
[339430403,1727615284221,-500.0,0.000157,30]
[339430404,1727615284246,-619.91452493,0.000157,30]
[339430405,1727615284276,-152.0,0.000171,30]
[339430406,1727615284308,-5006.71599,0.000192,30]
[339430407,1727615284336,-1010.40397634,0.0002,30]
[339430408,1727615284362,-2110.0,0.0002,30]
[339430409,1727615284388,-2000.0,0.0002,30]
[339430410,1727615284414,-475.473158,0.0002,30]
[339430411,1727615284440,-1000.0,0.0002,30]
[339430412,1727615284465,-686.29069642,0.0002,30]
[339430413,1727615284494,-2110.0,0.000205,30]
[339430414,1727615284519,-2889.29105871,0.00020919,40]
[339430415,1727615284544,-2110.0,0.00021,30]
[339430416,1727615284569,-5801.16743472,0.00021,30]
[339430417,1727615284596,-500.0,0.00021,30]
[339430418,1727615284622,-506.68977044,0.00021,30]
[339430419,1727615284647,-577.68118456,0.00021,30]
[339430420,1727615284671,-502.40479607,0.00021,30]
[339430421,1727615284695,-502.50322819,0.00021,30]
[339430422,1727615284718,-500.0,0.00021,30]
[339430423,1727615284742,-500.0,0.00021,30]
[339430424,1727615284768,-500.0,0.00021,30]
[339430425,1727615284809,-500.0,0.00021,30]
[339430426,1727615284858,-503.55483401,0.00021,30]
[339430427,1727615284906,-500.0,0.00021,30]
[339430428,1727615284949,-500.0,0.00021,30]
[339430429,1727615284991,-500.0,0.00021,30]
[339430430,1727615285035,-500.0,0.00021,30]
[339430431,1727615285075,-500.0,0.00021,30]
[339430432,1727615285117,-500.0,0.00021,30]
[339430433,1727615285159,-500.0,0.00021,30]
[339430434,1727615285200,-500.0,0.00021,30]
[339430435,1727615285243,-2110.0,0.000215,30]
[339430436,1727615285285,-1262.84223718,0.00021918,30]
[339430437,1727615285325,-500.0,0.00021999,120]
[339430438,1727615285366,-500.0,0.00021999,120]
[339430439,1727615285405,-500.0,0.00021999,120]
[339430440,1727615285445,-500.0,0.00021999,120]
[339430441,1727615285485,-500.0,0.00021999,120]
[339430442,1727615285525,-500.0,0.00021999,120]
[339430443,1727615285564,-500.0,0.00021999,120]
[339430444,1727615285602,-500.0,0.00021999,120]
[339430445,1727615285640,-500.0,0.00021999,120]
[339430446,1727615285678,-500.0,0.00021999,120]
[339430447,1727615285716,-500.0,0.00021999,120]
[339430448,1727615285753,-500.0,0.00021999,120]
[339430449,1727615285789,-500.0,0.00021999,120]
[339430450,1727615285824,-500.0,0.00021999,120]
[339430451,1727615285861,-500.0,0.00021999,120]
[339430452,1727615285895,-575.06930815,0.00021999,120]
[339430453,1727615285918,-500.0,0.00021999,30]
[339430454,1727615285940,-500.0,0.00021999,30]
[339430455,1727615286201,-500.0,0.00021999,30]
[339430456,1727615286224,-571.3884383,0.00021999,30]
[339430457,1727615286247,-500.0,0.00021999,120]
[339430458,1727615286271,-532.21227871,0.00021999,120]
[339430459,1727615286294,-496.95682252,0.00021999,120]
[339430460,1727615286317,-500.0,0.00021999,120]
[339430461,1727615286339,-500.0,0.00021999,120]
[339430462,1727615286361,-500.0,0.00021999,120]
[339430463,1727615286387,-500.0,0.00021999,120]
[339430464,1727615286409,-500.0,0.00021999,120]
[339430465,1727615286432,-500.0,0.00021999,120]
[339430466,1727615286455,-500.0,0.00021999,120]
[339430467,1727615286478,-500.0,0.00021999,120]
[339430468,1727615286501,-500.0,0.00021999,120]
[339430469,1727615286524,-500.0,0.00021999,120]
[339430470,1727615286547,-500.0,0.00021999,120]
[339430471,1727615286571,-548.73402307,0.00021999,120]
[339430472,1727615286594,-500.0,0.00021999,120]
[339430473,1727615286617,-500.0,0.00021999,120]
[339430474,1727615286639,-500.0,0.00021999,120]
[339430475,1727615286661,-500.0,0.00021999,120]
[339430476,1727615286684,-500.0,0.00021999,120]
[339430477,1727615286707,-500.0,0.00021999,120]
[339430478,1727615286729,-500.0,0.00021999,120]
[339430479,1727615286752,-641.20053333,0.00021999,120]
[339430480,1727615286774,-500.0,0.00021999,60]
[339430481,1727615286797,-544.3566879,0.00021999,60]
[339430482,1727615286820,-240.13581976,0.00021999,120]
[339430483,1727615286843,-500.0,0.00021999,120]
[339430484,1727615286867,-500.0,0.00021999,120]
[339430485,1727615286890,-500.0,0.00021999,120]
[339430486,1727615286913,-500.0,0.00021999,120]
[339430487,1727615286936,-500.0,0.00021999,120]
[339430488,1727615286959,-500.0,0.00021999,120]
[339430489,1727615286982,-570.04175564,0.00021999,120]
[339430490,1727615287005,-500.0,0.00021999,120]
[339430491,1727615287031,-500.0,0.00021999,120]
[339430492,1727615287057,-428.32253152,0.00021999,120]
[339430493,1727615287080,-300.58066193,0.00021999,120]
[339430494,1727615287106,-500.0,0.00021999,120]
[339430495,1727615287130,-500.0,0.00021999,120]
[339430496,1727615287153,-500.0,0.00021999,120]
[339430497,1727615287178,-500.0,0.00021999,120]
[339430498,1727615287200,-633.56167207,0.00021999,120]
[339430499,1727615287223,-500.0,0.00021999,120]
[339430500,1727615287247,-500.0,0.00021999,120]
[339430501,1727615287270,-500.0,0.00021999,120]
[339430502,1727615287294,-500.0,0.00021999,120]
[339430503,1727615287316,-500.0,0.00021999,120]
[339430504,1727615287339,-500.0,0.00021999,120]
[339430505,1727615287361,-500.0,0.00021999,120]
[339430506,1727615287385,-500.0,0.00021999,120]
[339430507,1727615287408,-405.55782729,0.00021999,120]
[339430508,1727615287431,-500.0,0.00021999,120]
[339430509,1727615287454,-500.0,0.00021999,120]
[339430510,1727615287477,-500.0,0.00021999,120]
[339430511,1727615287500,-500.0,0.00021999,120]
[339430512,1727615287523,-500.0,0.00021999,120]
[339430513,1727615287546,-500.0,0.00021999,120]
[339430514,1727615287569,-500.0,0.00021999,120]
[339430515,1727615287591,-500.0,0.00021999,120]
[339430516,1727615287615,-500.0,0.00021999,120]
[339430517,1727615287638,-500.0,0.00021999,120]
[339430518,1727615287661,-500.0,0.00021999,120]
[339430519,1727615287684,-500.0,0.00021999,120]
[339430520,1727615287707,-500.0,0.00021999,120]
[339430521,1727615287729,-500.0,0.00021999,120]
[339430522,1727615287752,-500.0,0.00021999,120]
[339430523,1727615287775,-500.0,0.00021999,120]
[339430524,1727615287797,-500.0,0.00021999,120]
[339430525,1727615287820,-500.0,0.00021999,120]
[339430526,1727615287842,-500.0,0.00021999,120]
[339430527,1727615287866,-500.0,0.00021999,120]
[339430528,1727615288019,-500.0,0.00021999,120]
[339430529,1727615288044,-514.26374925,0.00021999,120]
[339430530,1727615288067,-500.0,0.00021999,120]
[339430531,1727615288092,-500.0,0.00021999,120]
[339430532,1727615288116,-500.0,0.00021999,120]
[339430533,1727615288143,-500.0,0.00021999,120]
[339430534,1727615288169,-549.1477566,0.00021999,120]
[339430535,1727615288193,-500.0,0.00021999,120]
[339430536,1727615288216,-500.0,0.00021999,120]
[339430537,1727615288239,-500.0,0.00021999,120]
[339430538,1727615288263,-500.0,0.00021999,120]
[339430539,1727615288286,-500.0,0.00021999,120]
[339430540,1727615288310,-500.0,0.00021999,120]
[339430541,1727615288334,-500.0,0.00021999,120]
[339430542,1727615288358,-500.0,0.00021999,120]
[339430543,1727615288383,-500.0,0.00021999,120]
[339430544,1727615288407,-500.0,0.00021999,120]
[339430545,1727615288430,-500.0,0.00021999,120]
[339430546,1727615288453,-500.0,0.00021999,120]
[339430547,1727615288475,-500.0,0.00021999,120]
[339430548,1727615288498,-500.0,0.00021999,120]
[339430549,1727615288521,-161.61001276,0.00021999,120]
[339430550,1727615288544,-500.0,0.00021999,120]
[339430551,1727615288568,-500.0,0.00021999,120]
[339430552,1727615288591,-500.0,0.00021999,120]
[339430553,1727615288617,-500.0,0.00021999,120]
[339430554,1727615288641,-500.0,0.00021999,120]
[339430555,1727615288665,-443.59176351,0.00021999,120]
[339430556,1727615288689,-500.0,0.00021999,120]
[339430557,1727615288714,-500.0,0.00021999,120]
[339430558,1727615288737,-500.0,0.00021999,120]
[339430559,1727615288761,-500.0,0.00021999,120]
[339430560,1727615288785,-500.0,0.00021999,120]
[339430561,1727615288809,-500.0,0.00021999,120]
[339430562,1727615288833,-500.0,0.00021999,120]
[339430563,1727615288857,-500.0,0.00021999,120]
[339430564,1727615288881,-574.82832379,0.00021999,120]
[339430565,1727615288906,-500.0,0.00021999,120]
[339430566,1727615288930,-500.0,0.00021999,120]
[339430567,1727615288954,-500.0,0.00021999,120]
[339430568,1727615288978,-500.0,0.00021999,120]
[339430569,1727615289002,-500.0,0.00021999,120]
[339430570,1727615289027,-500.0,0.00021999,120]
[339430571,1727615289051,-500.0,0.00021999,120]
[339430572,1727615289076,-500.0,0.00021999,120]
[339430573,1727615289106,-500.67037821,0.00021999,120]
[339430574,1727615289132,-500.0,0.00021999,120]
[339430575,1727615289158,-500.0,0.00021999,120]
[339430576,1727615289183,-500.0,0.00021999,120]
[339430577,1727615289207,-500.0,0.00021999,120]
[339430578,1727615289230,-505.11094097,0.00021999,120]
[339430579,1727615289254,-500.0,0.00021999,120]
[339430580,1727615289279,-500.0,0.00021999,120]
[339430581,1727615289303,-500.0,0.00021999,120]
[339430582,1727615289328,-500.0,0.00021999,120]
[339430583,1727615289352,-500.0,0.00021999,120]